fUSD/lending_fUSD_20250623
["ID","MTS","AMOUNT","RATE_DAILY","PERIOD"]
[367123135,1750662811026,-1478.51,0.00033698,3]
[367123136,1750662811035,-1376.66784077,0.00033698,3]
[367123137,1750662811045,-889.6542708,0.00033698,3]
[367123138,1750662811055,-1155.30260352,0.00033698,3]
[367123139,1750662811065,-495.121423,0.00033698,3]
[367123140,1750662811074,-611.82530807,0.00033698,3]
[367123141,1750662811085,-668.70184025,0.00033698,3]
[367123142,1750662811094,-698.06649892,0.00033698,3]
[367123143,1750662811104,-644.54564573,0.00033698,3]
[367123144,1750662811114,-617.84089544,0.00033698,3]
[367123145,1750662811123,-826.92968825,0.00033698,3]
[367123146,1750662811132,-626.62159138,0.00033698,3]
[367123147,1750662811142,-841.55750343,0.00033698,3]
[367123148,1750662811152,-625.38653139,0.00033698,3]
[367123149,1750662811161,-1584.92295151,0.00033698,3]
[367123150,1750662811171,-1089.46894866,0.00033698,3]
[367123151,1750662811181,-914.286628,0.00033698,3]
[367123152,1750662811191,-777.55179467,0.00033698,3]
[367123153,1750662811201,-667.39572452,0.00033698,3]
[367123154,1750662811211,-1172.74623751,0.00033698,3]
[367123155,1750662811220,-857.86168496,0.00033698,3]
[367123156,1750662811230,-601.44819961,0.00033698,3]
[367123157,1750662811240,-654.38453276,0.00033698,3]
[367123158,1750662811250,-1486.30269647,0.00033698,3]
[367123159,1750662811259,-563.61451825,0.00033698,3]
[367123160,1750662811269,-2328.1,0.00033698,3]
[367123161,1750662811278,-641.79399379,0.00033698,3]
[367123162,1750662811288,-2984.814565,0.00033698,3]
[367123163,1750662811297,-834.59872486,0.00033698,3]
[367123164,1750662811306,-1714.96056505,0.00033698,3]
[367123165,1750662811316,-1666.58295758,0.00033698,3]
[367123166,1750662811326,-579.25649198,0.00033698,3]
[367123167,1750662811336,-774.97011111,0.00033698,3]
[367123168,1750662811345,-523.86901007,0.00033698,3]
[367123169,1750662811355,-1685.31462658,0.00033698,3]
[367123170,1750662811365,-198.016965,0.00033698,3]
[367123171,1750662811374,-685.96128918,0.00033698,3]
[367123172,1750662811384,-845.35461611,0.00033698,3]
[367123173,1750662811393,-1003.013708,0.00033698,3]
[367123174,1750662811403,-407.11292343,0.00033698,3]
[367123175,1750662811413,-620.37528523,0.00033698,3]
[367123176,1750662811422,-692.18623314,0.00033698,3]
[367123177,1750662811433,-583.56194479,0.00033698,3]
[367123178,1750662811443,-1382.34270762,0.00033698,3]
[367123179,1750662811452,-957.63621774,0.00033698,3]
[367123180,1750662811462,-1521.04459547,0.00033698,3]
[367123181,1750662811472,-852.48370967,0.00033698,3]
[367123182,1750662811482,-1514.68033225,0.00033698,3]
[367123183,1750662811494,-1413.95968989,0.00033698,3]
[367123184,1750662811503,-565.02145575,0.00033698,3]
[367123185,1750662811513,-621.96838448,0.00033698,3]
[367123186,1750662811522,-643.89668083,0.00033698,3]
[367123187,1750662811533,-1487.02647919,0.00033698,3]
[367123188,1750662811544,-605.57537262,0.00033698,3]
[367123189,1750662811553,-635.94497448,0.00033698,3]
[367123190,1750662811563,-748.30972892,0.00033698,3]
[367123191,1750662811573,-560.07736167,0.00033698,3]
[367123192,1750662811582,-702.47862109,0.00033698,3]
[367123193,1750662811592,-521.2369316,0.00033698,3]
[367123194,1750662811601,-765.80749371,0.00033698,3]
[367123195,1750662811610,-1438.00668729,0.00033698,3]
[367123196,1750662811619,-933.4855741,0.00033698,3]
[367123197,1750662811629,-623.94745218,0.00033698,3]
[367123198,1750662811639,-1229.44192466,0.00033698,3]
[367123199,1750662811649,-1240.65543152,0.00033698,3]
[367123200,1750662811659,-1045.01679882,0.00033698,3]
[367123201,1750662811668,-636.39935828,0.00033698,3]
[367123202,1750662811677,-491.04613801,0.00033698,3]
[367123203,1750662811687,-583.59775424,0.00033698,3]
[367123204,1750662811698,-1648.19556574,0.00033698,3]
[367123205,1750662811707,-745.63595581,0.00033698,3]
[367123206,1750662811717,-1025.86305924,0.00033698,3]
[367123207,1750662811727,-507.86285013,0.00033698,3]
[367123208,1750662811737,-1776.13088674,0.00033698,3]
[367123209,1750662811747,-803.47812572,0.00033698,3]
[367123210,1750662811756,-1819.06173196,0.00033698,3]
[367123211,1750662811766,-1306.17787843,0.00033698,3]
[367123212,1750662811775,-1801.70825621,0.00033698,3]
[367123213,1750662811784,-825.27,0.00033698,3]
[367123214,1750662811794,-553.3199724,0.00033698,3]
[367123215,1750662811804,-1449.96595753,0.00033698,3]
[367123216,1750662811813,-1184.61300112,0.00033698,3]
[367123217,1750662811822,-2077.43444946,0.00033698,3]
[367123218,1750662811832,-903.23939566,0.00033698,3]
[367123219,1750662811842,-1228.95959965,0.00033698,3]
[367123220,1750662811851,-841.01231293,0.00033698,3]
[367123221,1750662811861,-699.02104038,0.00033698,3]
[367123222,1750662811870,-1683.21343951,0.00033698,3]
[367123223,1750662811879,-614.20820306,0.00033698,3]
[367123224,1750662811889,-1017.73714508,0.00033698,3]
[367123225,1750662811899,-1068.55672384,0.00033698,3]
[367123226,1750662811909,-899.59756954,0.00033698,3]
[367123227,1750662811919,-1018.45284719,0.00033698,3]
[367123228,1750662811928,-1034.97250482,0.00033698,3]
[367123229,1750662811938,-1636.53162999,0.00033698,3]
[367123230,1750662811949,-636.55128434,0.00033698,3]
[367123231,1750662811959,-514.87330049,0.00033698,3]
[367123232,1750662811969,-1597.75466736,0.00033698,3]
[367123233,1750662811979,-878.17294326,0.00033698,3]
[367123234,1750662811989,-933.62004941,0.00033698,3]
[367123235,1750662811999,-980.37416648,0.00033698,3]
[367123236,1750662812008,-1351.35078479,0.00033698,3]
[367123237,1750662812018,-185.79666151,0.00033698,3]
[367123238,1750662812028,-1021.77365309,0.00033698,3]
[367123239,1750662812037,-2515.9549546,0.00033698,3]
[367123240,1750662812047,-973.81456391,0.00033698,3]
[367123241,1750662812056,-563.64632416,0.00033698,3]
[367123242,1750662812065,-718.51027002,0.00033698,3]
[367123243,1750662812075,-1171.15117869,0.00033698,3]
[367123244,1750662812084,-763.82982477,0.00033698,3]
[367123245,1750662812094,-806.32907472,0.00033698,3]
[367123246,1750662812104,-1313.33038665,0.00033698,3]
[367123247,1750662812113,-1866.76941939,0.00033698,3]
[367123248,1750662812123,-783.454579,0.00033698,3]
[367123249,1750662812133,-1408.56377059,0.00033698,3]
[367123250,1750662812142,-760.65328053,0.00033698,3]
[367123251,1750662812153,-640.19683735,0.00033698,3]
[367123252,1750662812162,-1114.00224138,0.00033698,3]
[367123253,1750662812172,-1204.77480829,0.00033698,3]
[367123254,1750662812182,-1615.16203343,0.00033698,3]
[367123255,1750662812191,-852.45484881,0.00033698,3]
[367123256,1750662812201,-1617.6238205,0.00033698,3]
[367123257,1750662812211,-1344.33168216,0.00033698,3]
[367123258,1750662812221,-1189.46909748,0.00033698,3]
[367123259,1750662812230,-924.47185861,0.00033698,3]
[367123260,1750662812240,-1017.9165389,0.00033698,3]
[367123261,1750662812250,-1327.6906358,0.00033698,3]
[367123262,1750662812260,-817.03124771,0.00033698,3]
[367123263,1750662812270,-1505.282112,0.00033698,3]
[367123264,1750662812280,-1444.20563312,0.00033698,3]
[367123265,1750662812289,-995.64490271,0.00033698,3]
[367123266,1750662812299,-3011.09098384,0.00033698,2]
[367123267,1750662812309,-1097.56,0.00033698,3]
[367123268,1750662812319,-753.66529318,0.00033698,3]
[367123269,1750662812329,-1037.17205977,0.00033698,3]
[367123270,1750662812339,-1995.76304021,0.00033698,3]
[367123271,1750662812348,-752.24334025,0.00033698,3]
[367123272,1750662812358,-660.53391221,0.00033698,3]
[367123273,1750662812368,-1341.61282581,0.00033698,3]
[367123274,1750662812378,-850.20128774,0.00033698,3]
[367123275,1750662812388,-582.02473076,0.00033698,3]
[367123276,1750662812398,-2153.34614117,0.00033698,3]
[367123277,1750662812407,-557.7351425,0.00033698,3]
[367123278,1750662812417,-507.29558522,0.00033698,3]
[367123279,1750662812427,-572.61102685,0.00033698,3]
[367123280,1750662812437,-2413.05,0.00033698,3]
[367123281,1750662812448,-1348.99874618,0.00033698,3]
[367123282,1750662812460,-2316.44903745,0.00033698,3]
[367123283,1750662812470,-566.47454057,0.00033698,3]
[367123284,1750662812480,-1609.27587131,0.00033698,3]
[367123285,1750662812490,-570.17985429,0.00033698,3]
[367123286,1750662812499,-731.3571799,0.00033698,3]
[367123287,1750662812509,-2663.96765364,0.00033698,3]
[367123288,1750662812523,-861.78629252,0.00033698,3]
[367123289,1750662812532,-560.04420554,0.00033698,3]
[367123290,1750662812547,-921.11537891,0.00033698,3]
[367123291,1750662812557,-783.67,0.00033698,3]
[367123292,1750662812566,-600.22854936,0.00033698,3]
[367123293,1750662812576,-1052.10914186,0.00033698,3]
[367123294,1750662812587,-1117.65108429,0.00033698,3]
[367123295,1750662812597,-785.43968959,0.00033698,3]
[367123296,1750662812606,-595.84383711,0.00033698,3]
[367123297,1750662812616,-950.65109044,0.00033698,3]
[367123298,1750662812625,-1688.54359715,0.00033698,3]
[367123299,1750662812635,-1953.59,0.00033698,3]
[367123300,1750662812644,-1726.30253261,0.00033698,3]
[367123301,1750662812654,-1456.43617532,0.00033698,3]
[367123302,1750662812663,-1698.36712488,0.00033698,3]
[367123303,1750662812672,-603.12390482,0.00033698,3]
[367123304,1750662812681,-1007.17,0.00033698,3]
[367123305,1750662812690,-1681.07590691,0.00033698,3]
[367123306,1750662812701,-1708.62739211,0.00033698,3]
[367123307,1750662812710,-873.47997659,0.00033698,3]
[367123308,1750662812719,-1098.74575848,0.00033698,3]
[367123309,1750662812728,-1944.70049149,0.00033698,3]
[367123310,1750662812737,-2433.83777174,0.00033698,3]
[367123311,1750662812747,-577.12739069,0.00033698,3]
[367123312,1750662812756,-750.44147881,0.00033698,3]
[367123313,1750662812765,-662.47716817,0.00033698,3]
[367123314,1750662812774,-501.42424844,0.00033698,3]
[367123315,1750662812784,-1247.21084774,0.00033698,3]
[367123316,1750662812793,-1551.84838376,0.00033698,3]
[367123317,1750662812803,-1650.49429218,0.00033698,3]
[367123318,1750662812812,-529.91379358,0.00033698,3]
[367123319,1750662812822,-788.78492779,0.00033698,3]
[367123320,1750662812831,-912.4963543,0.00033698,3]
[367123321,1750662812841,-1251.48960431,0.00033698,3]
[367123322,1750662812850,-655.77061695,0.00033698,3]
[367123323,1750662812860,-703.59261341,0.00033698,3]
[367123324,1750662812870,-675.59596833,0.00033698,3]
[367123325,1750662812879,-1664.28469837,0.00033698,3]
[367123326,1750662812888,-1679.96245059,0.00033698,3]
[367123327,1750662812898,-1433.41076339,0.00033698,3]
[367123328,1750662812908,-1066.46702952,0.00033698,3]
[367123329,1750662812918,-573.06185495,0.00033698,3]
[367123330,1750662812931,-1605.66640003,0.00033698,3]
[367123331,1750662812941,-1690.95613814,0.00033698,3]
[367123332,1750662812951,-395.93773875,0.00033698,3]
[367123333,1750662812960,-1674.50334952,0.00033698,3]
[367123334,1750662812971,-638.99319267,0.00033698,3]
[367123335,1750662812982,-1574.13257229,0.00033698,3]
[367123336,1750662812991,-378.85989942,0.00033698,3]
[367123337,1750662813000,-684.61676939,0.00033698,3]
[367123338,1750662813009,-1278.53098194,0.00033698,3]
[367123339,1750662813019,-905.81447272,0.00033698,3]
[367123340,1750662813029,-1682.57,0.00033698,3]
[367123341,1750662813039,-1883.74010848,0.00033698,3]
[367123342,1750662813049,-1126.41687955,0.00033698,3]
[367123343,1750662813059,-7415.3982292,0.00033698,3]
[367123344,1750662813069,-1410.47337899,0.00033698,3]
[367123345,1750662813079,-2332.79626825,0.00033698,3]
[367123346,1750662813088,-1449.13957566,0.00033698,3]
[367123347,1750662813098,-849.91876525,0.00033698,3]
[367123348,1750662813107,-883.52380981,0.00033698,3]
[367123349,1750662813117,-1249.03,0.00033698,3]
[367123350,1750662813127,-587.95965212,0.00033698,3]
[367123351,1750662813136,-901.50564049,0.00033698,3]
[367123352,1750662813146,-1164.27981586,0.00033698,3]
[367123353,1750662813156,-1753.34287561,0.00033698,3]
[367123354,1750662813165,-10399.58376241,0.00033698,3]
[367123355,1750662813174,-4073.96189932,0.00033698,3]
[367123356,1750662813184,-580.8544897,0.00033698,3]
[367123357,1750662813194,-1448.54386556,0.00033698,3]
[367123358,1750662813204,-836.91279253,0.00033698,3]
[367123359,1750662813213,-919.09976724,0.00033698,3]
[367123360,1750662813223,-1355.21403802,0.00033698,3]
[367123361,1750662813232,-1900.62463017,0.00033698,3]
[367123362,1750662813243,-526.51522079,0.00033698,3]
[367123363,1750662813252,-6824.71648629,0.00033698,3]
[367123364,1750662813262,-1016.97332636,0.00033698,3]
[367123365,1750662813272,-3401.64147685,0.00033698,3]
[367123366,1750662813281,-3966.60537076,0.00033698,3]
[367123367,1750662813291,-909.86,0.00033698,3]
[367123368,1750662813301,-934.19271621,0.00033698,3]
[367123369,1750662813311,-4949.52123615,0.00033698,3]
[367123370,1750662813320,-2915.94833111,0.00033698,3]
[367123371,1750662813330,-1741.72474515,0.00033698,3]
[367123372,1750662813340,-1586.07,0.00033698,3]
[367123373,1750662813350,-608.62448283,0.00033698,3]
[367123374,1750662813360,-18062.50478196,0.00033698,3]
[367123375,1750662813369,-1570.68831772,0.00033698,3]
[367123376,1750662813379,-3469.1566871,0.00033698,3]
[367123377,1750662813388,-1673.00177548,0.00033698,3]
[367123378,1750662813397,-789.78,0.00033698,3]
[367123379,1750662813407,-798.34,0.00033698,3]
[367123380,1750662813416,-1533.24921396,0.00033698,3]
[367123381,1750662813426,-1681.40410333,0.00033698,3]
[367123382,1750662813435,-814.2373485,0.00033698,3]
[367123383,1750662813444,-528.83621184,0.00033698,3]
[367123384,1750662813454,-1980.90645627,0.00033698,3]
[367123385,1750662813463,-1108.2003457,0.00033698,3]
[367123386,1750662813473,-2594.63142044,0.00033698,3]
[367123387,1750662813482,-1623.56168977,0.00033698,3]
[367123388,1750662813492,-891.2273042,0.00033698,3]
[367123389,1750662813502,-1019.25710858,0.00033698,3]
[367123390,1750662813511,-1175.04869041,0.00033698,3]
[367123391,1750662813520,-3127.34126966,0.00033698,3]
[367123392,1750662813530,-1569.31113209,0.00033698,3]
[367123393,1750662813544,-1940.61471554,0.00033698,3]
[367123394,1750662813554,-665.01613347,0.00033698,3]
[367123395,1750662813563,-2329.50210573,0.00033698,3]
[367123396,1750662813572,-1830.90485014,0.00033698,3]
[367123397,1750662813581,-1700.34363704,0.00033698,3]
[367123398,1750662813590,-2769.85703638,0.00033698,3]
[367123399,1750662813600,-6713.10370077,0.00033698,3]
[367123400,1750662813610,-777.71194083,0.00033698,3]
[367123401,1750662813619,-744.42597488,0.00033698,3]
[367123402,1750662813629,-2394.94185857,0.00033698,3]
[367123403,1750662813638,-826.26080335,0.00033698,3]
[367123404,1750662813648,-1294.78666743,0.00033698,3]
[367123405,1750662813657,-760.11124744,0.00033698,3]
[367123406,1750662813667,-1749.16769905,0.00033698,3]
[367123407,1750662813676,-325.36552497,0.00033698,3]
[367123408,1750662813686,-555.86759654,0.00033698,3]
[367123409,1750662813695,-4056.86444865,0.00033698,3]
[367123410,1750662813705,-1626.2569335,0.00033698,3]
[367123411,1750662813714,-1498.84071418,0.00033698,3]
[367123412,1750662813724,-1457.29506974,0.00033698,3]
[367123413,1750662813734,-364.43093623,0.00033698,3]
[367123414,1750662813744,-737.61760125,0.00033698,3]
[367123415,1750662813754,-1307.91503733,0.00033698,3]
[367123416,1750662813764,-728.12,0.00033698,3]
[367123417,1750662813774,-1832.54111832,0.00033698,3]
[367123418,1750662813784,-1380.81736192,0.00033698,3]
[367123419,1750662813794,-2228.27882441,0.00033698,3]
[367123420,1750662813804,-2372.10699163,0.00033698,3]
[367123421,1750662813813,-3319.10455752,0.00033698,3]
[367123422,1750662813823,-709.06358301,0.00033698,3]
[367123423,1750662813832,-862.54968791,0.00033698,3]
[367123424,1750662813843,-788.92677939,0.00033698,3]
[367123425,1750662813853,-1200.1477614,0.00033698,3]
[367123426,1750662813863,-1916.90769183,0.00033698,3]
[367123427,1750662813873,-678.98913375,0.00033698,3]
[367123428,1750662813883,-4654.28992615,0.00033698,3]
[367123429,1750662813893,-1366.74965577,0.00033698,3]
[367123430,1750662813903,-515.27499891,0.00033698,3]
[367123431,1750662813912,-788.84402899,0.00033698,3]
[367123432,1750662813922,-553.90320346,0.00033698,3]
[367123433,1750662813932,-1107.49400299,0.00033698,3]
[367123434,1750662813941,-499.046912,0.00033698,3]
[367123435,1750662813951,-7394.33297328,0.00033698,3]
[367123436,1750662813960,-1625.10207761,0.00033698,3]
[367123437,1750662813970,-1578.40768585,0.00033698,3]
[367123438,1750662813979,-2834.66659243,0.00033698,3]
[367123439,1750662813989,-12536.04,0.00033698,3]
[367123440,1750662813999,-1036.66147756,0.00033698,3]
[367123441,1750662814008,-3544.19,0.00033698,3]
[367123442,1750662814017,-1768.64049573,0.00033698,3]
[367123443,1750662814027,-497.67040599,0.00033698,3]
[367123444,1750662814036,-510.52755528,0.00033698,3]
[367123445,1750662814045,-1620.10173934,0.00033698,3]
[367123446,1750662814055,-5190.5192485,0.00033698,3]
[367123447,1750662814064,-9853.01517276,0.00033698,3]
[367123448,1750662814074,-254.98,0.00033698,3]
[367123449,1750662814083,-1552.55341683,0.00033698,3]
[367123450,1750662814093,-815.10257755,0.00033698,3]
[367123451,1750662814102,-510.44903168,0.00033698,3]
[367123452,1750662814112,-1717.20714689,0.00033698,3]
[367123453,1750662814122,-2783.16076528,0.00033698,3]
[367123454,1750662814132,-1947.99016342,0.00033698,3]
[367123455,1750662814142,-1630.32001023,0.00033698,3]
[367123456,1750662814152,-2330.95185132,0.00033698,3]
[367123457,1750662814161,-752.17841591,0.00033698,3]
[367123458,1750662814170,-1618.80993496,0.00033698,3]
[367123459,1750662814180,-1776.66137987,0.00033698,3]
[367123460,1750662814190,-916.05471235,0.00033698,3]
[367123461,1750662814200,-1151.98241632,0.00033698,3]
[367123462,1750662814210,-670.44411843,0.00033698,3]
[367123463,1750662814219,-1591.18392934,0.00033698,3]
[367123464,1750662814228,-3986.70299279,0.00033698,3]
[367123465,1750662814238,-6065.60095029,0.00033698,3]
[367123466,1750662814247,-1605.47371492,0.00033698,3]
[367123467,1750662814256,-1960.93691183,0.00033698,3]
[367123468,1750662814266,-1642.63909064,0.00033698,3]
[367123469,1750662814275,-798.23029327,0.00033698,3]
[367123470,1750662814284,-1292.69902952,0.00033698,3]
[367123471,1750662814294,-2292.54259507,0.00033698,3]
[367123472,1750662814303,-2903.77544778,0.00033698,3]
[367123473,1750662814313,-1562.20383757,0.00033698,3]
[367123474,1750662814322,-4219.3621938,0.00033698,3]
[367123475,1750662814331,-765.59627395,0.00033698,3]
[367123476,1750662814341,-1872.44924287,0.00033698,3]
[367123477,1750662814351,-3240.72130121,0.00033698,3]
[367123478,1750662814360,-492.54939594,0.00033698,3]
[367123479,1750662814369,-1499.27057438,0.00033698,3]
[367123480,1750662814379,-1684.93167164,0.00033698,3]
[367123481,1750662814388,-1822.51083016,0.00033698,3]
[367123482,1750662814398,-2262.46376431,0.00033698,3]
[367123483,1750662814407,-745.4575768,0.00033698,3]
[367123484,1750662814416,-1565.40459332,0.00033698,3]
[367123485,1750662814425,-1599.98196142,0.00033698,3]
[367123486,1750662814434,-3248.69949,0.00033698,3]
[367123487,1750662814443,-638.75578972,0.00033698,3]
[367123488,1750662814453,-8785.33668037,0.00033698,3]
[367123489,1750662814462,-849.77226209,0.00033698,3]
[367123490,1750662814471,-1788.07020334,0.00033698,3]
[367123491,1750662814480,-1444.89852024,0.00033698,3]
[367123492,1750662814490,-948.22899535,0.00033698,3]
[367123493,1750662814499,-1336.08,0.00033698,3]
[367123494,1750662814509,-795.29524232,0.00033698,3]
[367123495,1750662814519,-1583.86505049,0.00033698,3]
[367123496,1750662814528,-508.02,0.00033698,3]
[367123497,1750662814540,-3963.91275054,0.00033698,3]
[367123498,1750662814552,-1579.04399743,0.00033698,3]
[367123499,1750662814561,-1445.8464643,0.00033698,3]
[367123500,1750662814571,-1285.59842983,0.00033698,3]
[367123501,1750662814583,-728.68638423,0.00033698,3]
[367123502,1750662814593,-807.16932154,0.00033698,3]
[367123503,1750662814603,-1798.04860798,0.00033698,3]
[367123504,1750662814624,-1432.19184217,0.00033698,3]
[367123505,1750662814634,-1831.74061467,0.00033698,3]
[367123506,1750662814644,-919.25,0.00033698,3]
[367123507,1750662814653,-14900.66714372,0.00033698,3]
[367123508,1750662814663,-1833.80880144,0.00033698,3]
[367123509,1750662814672,-2078.60805803,0.00033698,3]
[367123510,1750662814682,-510.46483115,0.00033698,3]
[367123511,1750662814691,-4834.05860524,0.00033698,3]
[367123512,1750662814701,-1601.38250005,0.00033698,3]
[367123513,1750662814711,-759.20940688,0.00033698,3]
[367123514,1750662814720,-873.43135677,0.00033698,3]
[367123515,1750662814729,-4669.43651004,0.00033698,3]
[367123516,1750662814739,-1693.70560587,0.00033698,3]
[367123517,1750662814748,-791.9037277,0.00033698,3]
[367123518,1750662814758,-990.38442121,0.00033698,3]
[367123519,1750662814768,-1035.17,0.00033698,3]
[367123520,1750662814777,-1620.70899033,0.00033698,3]
[367123521,1750662814787,-1653.67304723,0.00033698,3]
[367123522,1750662814797,-1389.91102355,0.00033698,3]
[367123523,1750662814807,-3451.35455016,0.00033698,3]
[367123524,1750662814816,-2416.24265759,0.00033698,3]
[367123525,1750662814826,-993.60528378,0.00033698,3]
[367123526,1750662814836,-11091.16239714,0.00033698,3]
[367123527,1750662814845,-1799.29546903,0.00033698,3]
[367123528,1750662814855,-1701.87420272,0.00033698,3]
[367123529,1750662815025,-2070.35563486,0.00033698,3]
[367123530,1750662815040,-1221.45970109,0.00033698,3]
[367123531,1750662815052,-1378.68701861,0.00033698,3]
[367123532,1750662815062,-1736.20939224,0.00033698,3]
[367123533,1750662815074,-1087.19,0.00033698,3]
[367123534,1750662815085,-1835.13849759,0.00033698,3]
[367123535,1750662815096,-709.28367262,0.00033698,3]
[367123536,1750662815106,-1672.08237659,0.00033698,3]
[367123537,1750662815115,-1571.12698022,0.00033698,3]
[367123538,1750662815126,-1351.64357023,0.00033698,3]
[367123539,1750662815136,-4884.02821764,0.00033698,3]
[367123540,1750662815146,-1817.1176908,0.00033698,3]
[367123541,1750662815156,-1729.10194032,0.00033698,3]
[367123542,1750662815166,-8073.81891195,0.00033698,3]
[367123543,1750662815175,-1652.39156346,0.00033698,3]
[367123544,1750662815186,-867.47086327,0.00033698,3]
[367123545,1750662815195,-1482.82,0.00033698,3]
[367123546,1750662815205,-30050.9290455,0.00033698,3]
[367123547,1750662815215,-1513.42971363,0.00033698,3]
[367123548,1750662815225,-1869.98755582,0.00033698,3]
[367123549,1750662815236,-825.69167332,0.00033698,3]
[367123550,1750662815246,-1291.26391608,0.00033698,3]
[367123551,1750662815256,-529.80906988,0.00033698,3]
[367123552,1750662815266,-718.98263832,0.00033698,3]
[367123553,1750662815276,-1014.19,0.00033698,2]
[367123554,1750662815285,-749.73141197,0.00033698,3]
[367123555,1750662815295,-2626.68808775,0.00033698,3]
[367123556,1750662815305,-1301.98570702,0.00033698,3]
[367123557,1750662815315,-1001.09497805,0.00033698,3]
[367123558,1750662815324,-915.16765304,0.00033698,3]
[367123559,1750662815334,-5331.9705811,0.00033698,3]
[367123560,1750662815343,-6188.82146142,0.00033698,3]
[367123561,1750662815352,-733.21687032,0.00033698,3]
[367123562,1750662815362,-2204.83864534,0.00033698,3]
[367123563,1750662815371,-742.19248004,0.00033698,3]
[367123564,1750662815380,-1553.97,0.00033698,3]
[367123565,1750662815391,-1201.92,0.00033698,3]
[367123566,1750662815399,-716.9197086,0.00033698,3]
[367123567,1750662815409,-866.15506582,0.00033698,3]
[367123568,1750662815418,-5637.32530368,0.00033698,3]
[367123569,1750662815427,-1651.89778472,0.00033698,3]
[367123570,1750662815436,-2465.31615794,0.00033698,3]
[367123571,1750662815446,-984.66814965,0.00033698,3]
[367123572,1750662815455,-1607.92255145,0.00033698,3]
[367123573,1750662815465,-572.08651291,0.00033698,3]
[367123574,1750662815474,-1907.19233135,0.00033698,3]
[367123575,1750662815483,-1536.29930776,0.00033698,3]
[367123576,1750662815492,-764.79106275,0.00033698,3]
[367123577,1750662815501,-2965.62792742,0.00033698,3]
[367123578,1750662815511,-594.26087868,0.00033698,3]
[367123579,1750662815523,-171.19643153,0.00033753,2]
[367123580,1750662815534,-151.3,0.00033759,5]
[367123581,1750662815544,-1224.0,0.00033825,2]
[367123582,1750662815554,-227.38,0.00033829,2]
[367123583,1750662815563,-500.0,0.00033854,7]
[367123584,1750662815574,-1224.0,0.00033887,7]
[367123585,1750662815583,-678.06131943,0.000339,2]
[367123586,1750662815592,-678.06131925,0.000339,2]
[367123587,1750662815601,-678.06131925,0.000339,2]
[367123588,1750662815611,-678.06131925,0.000339,2]
[367123589,1750662815621,-678.06131925,0.000339,2]
[367123590,1750662815632,-678.06131925,0.000339,2]
[367123591,1750662815642,-678.06131925,0.000339,2]
[367123592,1750662815653,-678.06131925,0.000339,2]
[367123593,1750662815663,-678.06131925,0.000339,2]
[367123594,1750662815673,-678.06131925,0.000339,2]
[367123595,1750662815684,-678.06131925,0.000339,2]
[367123596,1750662815694,-678.06131925,0.000339,2]
[367123597,1750662815704,-678.06131925,0.000339,2]
[367123598,1750662815713,-678.06131925,0.000339,2]
[367123599,1750662815725,-678.06131925,0.000339,2]
[367123600,1750662815735,-678.06131925,0.000339,2]
[367123601,1750662815746,-678.06131925,0.000339,2]
[367123602,1750662815757,-678.06131925,0.000339,2]
[367123603,1750662815766,-678.06131925,0.000339,2]
[367123604,1750662815774,-678.06131925,0.000339,2]
[367123605,1750662815784,-1258.03765544,0.000339,29]
[367123606,1750662815793,-207.0,0.0003398,30]
[367123607,1750662815806,-4000.0,0.00034,4]
[367123608,1750662815816,-1712.08184744,0.00034,7]
[367123609,1750662815826,-12585.00721047,0.00034,35]
[367123610,1750662815838,-1000.0,0.00034,2]
[367123611,1750662815849,-51243.91791075,0.00034,3]
[367123612,1750662815858,-487.50351938,0.00034,2]
[367123613,1750662815867,-88808.30824892,0.00034,3]
[367123614,1750662815876,-200.45,0.00034,2]
[367123615,1750662815886,-20006.520038,0.00034,2]
[367123616,1750662815895,-976.96,0.00034,2]
[367123617,1750662815904,-2817.06862694,0.00034,120]
[367123618,1750662815914,-94787.39278578,0.00034,2]
[367123619,1750662815923,-191.0,0.00034,30]
[367123620,1750662815934,-2501.014492,0.00034,15]
[367123621,1750662815943,-1279.0,0.00034028,2]
[367123622,1750662815953,-2005.0,0.00034028,2]
[367123623,1750662815963,-929.0,0.00034028,2]
[367123624,1750662815972,-559.0,0.00034028,2]
[367123625,1750662815982,-591.0,0.00034028,2]
[367123626,1750662815991,-1677.0,0.00034028,2]
[367123627,1750662816001,-1161.0,0.00034028,2]
[367123628,1750662816010,-4097.0,0.00034028,2]
[367123629,1750662816020,-2955.066,0.00034028,2]
[367123630,1750662816029,-156.0,0.00034028,2]
[367123631,1750662816039,-500.0,0.00034045,7]
[367123632,1750662816048,-500.0,0.00034048,120]
[367123633,1750662816058,-2000.0,0.00034048,60]
[367123634,1750662816068,-226.279251,0.00034048,120]